bitfinex/quotes_ETHUSD_20260114
["timestamp","ask_amount","ask_price","bid_price","bid_amount"]
[1768418297160,1.64698194,3346.4,3345.4,2.98914065]
[1768418297371,1.64698194,3346.4,3345.3,0.001]
[1768418297848,0.72947251,3346.4,3345.3,0.90328652]
[1768418298162,0.401,3346.5,3345.3,0.90328652]
[1768418298737,1.31850943,3346.5,3345.3,0.90328652]
[1768418299645,1.31850943,3346.5,3345.4,5.97835834]
[1768418301969,1.31850943,3346.5,3345.4,6.92093545]
[1768418302178,1.31850943,3346.5,3345.5,0.99112531]
[1768418302481,0.002,3347.0,3345.6,0.97246711]
[1768418302685,0.403,3347.0,3345.7,0.94257711]
[1768418303039,0.002,3347.0,3345.9,0.94257711]
[1768418303339,0.002,3347.0,3345.6,1.34157711]
[1768418303554,0.002,3347.0,3345.8,0.94257711]
[1768418303943,0.002,3347.3,3346.6,0.94257711]
[1768418306056,0.002,3347.3,3346.8,0.94257711]
[1768418307890,0.98003812,3348.1,3346.8,0.94257711]
[1768418308078,0.98003812,3348.0,3346.9,5.97567898]
[1768418308243,0.98003812,3348.0,3346.9,2.98783949]
[1768418308574,0.98003812,3347.8,3346.1,0.94257711]
[1768418308749,9.36137036,3348.1,3346.5,2.98814212]
[1768418308750,0.98003812,3347.6,3346.5,2.98814212]
[1768418309346,0.002,3347.0,3346.4,2.9882779]
[1768418309546,0.002,3347.0,3346.5,2.98811331]
[1768418309774,0.002,3347.0,3346.6,2.98808938]
[1768418309978,0.002,3347.0,3346.5,2.98817441]
[1768418310293,0.002,3347.0,3346.2,0.48325771]
[1768418310576,0.98203812,3347.0,3345.9,2.98866577]
[1768418310758,0.98203812,3347.0,3345.6,0.001]
[1768418311080,0.98003812,3346.9,3345.7,0.39327107]
[1768418311778,0.401,3346.8,3346.1,2.98852315]
[1768418311983,0.401,3346.8,3346.0,2.9886267]
[1768418312181,0.401,3346.8,3345.8,2.98881588]
[1768418312346,1.38103812,3346.8,3345.8,3.72026888]
[1768418312985,1.01049078,3346.7,3345.7,0.39327107]
[1768418313191,1.01049078,3346.7,3345.6,0.001]
[1768418313392,0.98003812,3346.7,3345.6,0.001]
[1768418313560,1.38103812,3346.6,3345.7,2.98885946]
[1768418314152,0.401,3346.6,3345.7,5.97777059]
[1768418315195,0.401,3346.6,3345.7,2.98885946]
[1768418315394,0.401,3346.6,3345.7,5.97777059]
[1768418315560,0.401,3346.6,3345.8,0.69213477]
[1768418316587,0.401,3346.6,3345.9,2.98873247]
[1768418317296,0.401,3346.6,3345.8,3.6809157]
[1768418318090,0.401,3346.6,3345.8,0.69213477]
[1768418318299,0.401,3346.6,3345.8,3.68095004]
[1768418318494,0.401,3346.6,3345.9,3.6557946]
[1768418319199,0.98003812,3346.7,3345.9,3.6557946]
[1768418319366,1.38103812,3346.7,3345.9,2.98870152]
[1768418320094,0.98003812,3346.7,3345.9,2.98870152]
[1768418320293,1.38103812,3346.7,3345.9,2.98870152]
[1768418320478,1.38103812,3346.7,3345.8,2.98880036]
[1768418320674,0.002,3347.0,3345.8,2.98880036]
[1768418320675,0.002,3347.0,3345.9,0.97246443]
[1768418320983,0.002,3347.0,3346.1,0.94257711]
[1768418321185,0.002,3347.0,3346.2,0.02988464]
[1768418323483,0.002,3347.0,3346.2,3.0183067]
[1768418324298,0.002,3347.0,3346.2,6.00677122]
[1768418324667,0.002,3347.0,3346.2,6.94934833]
[1768418324878,0.002,3347.0,3346.4,0.94257711]
[1768418325406,0.002,3347.0,3346.6,0.94257711]
[1768418327001,0.002,3347.0,3346.7,2.98801804]
[1768418329303,0.002,3347.0,3346.7,0.94257711]
[1768418329516,0.002,3347.0,3346.4,0.94257711]
[1768418329725,0.002,3347.0,3346.5,1.03067028]
[1768418330217,0.002,3347.0,3346.5,1.97324739]
[1768418330418,0.002,3347.3,3346.6,1.00854856]
[1768418330593,0.002,3347.3,3346.6,0.97866749]
[1768418331631,0.002,3347.3,3346.7,5.97603608]
[1768418331838,0.002,3347.3,3346.9,0.97866749]
[1768418332326,0.002,3347.3,3346.8,0.79853739]
[1768418333400,0.002,3347.3,3346.7,6.95470357]
[1768418333611,0.9474379,3348.5,3347.3,0.97866749]
[1768418333796,0.9474379,3348.4,3347.0,4.36537791]
[1768418334910,0.9474379,3348.4,3347.0,7.35312813]
[1768418335126,0.9474379,3348.2,3347.1,0.73531281]
[1768418335828,0.9474379,3348.2,3347.2,2.9875717]
[1768418336144,0.9474379,3348.2,3347.2,6.95381089]
[1768418336503,0.73210832,3348.3,3347.3,0.97866749]
[1768418336705,0.9474379,3348.4,3347.3,0.97866749]
[1768418337124,0.002,3349.0,3347.3,0.97866749]
[1768418337630,0.002,3349.0,3347.2,11.9502868]
[1768418337631,0.002,3349.0,3348.3,6.95184789]
[1768418337927,0.9474379,3349.6,3348.4,0.97866749]
[1768418338295,0.9474379,3349.5,3348.4,0.97866749]
[1768418338499,0.03045266,3349.4,3348.4,1.67385955]
[1768418338706,0.9474379,3349.5,3348.4,0.69519206]
[1768418339429,1.3504379,3349.8,3348.5,0.97866749]
[1768418339636,1.3504379,3349.8,3348.6,2.98632264]
[1768418339932,4.33569251,3349.8,3348.6,2.98632264]
[1768418340127,0.43356925,3349.7,3348.6,2.98632264]
[1768418340436,0.002,3349.8,3348.7,0.97866749]
[1768418340936,0.03245266,3349.8,3348.7,0.97866749]
[1768418341103,0.002,3349.8,3348.7,0.97866749]
[1768418341800,0.97989056,3349.8,3348.1,3.965351]
[1768418342061,0.9474379,3349.6,3347.5,3.96596965]
[1768418342216,0.7351219,3349.7,3347.6,2.98718685]
[1768418342217,0.9474379,3349.3,3347.6,2.98718685]
[1768418342537,0.03045266,3349.5,3348.1,2.98671088]
[1768418342538,0.9474379,3349.5,3348.1,2.98671088]
[1768418342856,0.9474379,3349.5,3348.0,0.97866749]
[1768418343013,0.9474379,3349.5,3348.0,2.98679311]
[1768418343213,0.9474379,3349.3,3348.0,2.98679311]
[1768418343740,0.9474379,3349.1,3347.8,2.98703513]
[1768418343942,0.97789056,3349.0,3347.8,2.98703513]
[1768418344311,0.9474379,3348.8,3347.8,2.98703513]
[1768418345245,0.9474379,3348.8,3347.7,2.9871011]
[1768418345454,0.9474379,3348.8,3347.5,0.399]
[1768418345635,0.9474379,3348.8,3347.5,2.98729873]
[1768418345839,0.9474379,3348.6,3347.2,5.9751434]
[1768418346022,0.9474379,3348.5,3347.3,0.73528109]
[1768418346222,0.73208441,3348.6,3347.3,1.71394858]
[1768418346639,1.67952231,3348.6,3347.3,1.71394858]
[1768418347944,4.66586009,3348.6,3347.4,2.9873932]
[1768418348144,1.67952231,3348.6,3347.4,5.9747864]
[1768418348370,4.665847,3348.6,3347.4,6.7835599]
[1768418348512,1.67952231,3348.6,3347.4,6.7835599]
[1768418348710,0.401,3348.6,3347.5,0.97866749]
[1768418348945,0.401,3348.6,3347.5,1.00854052]
[1768418350247,0.401,3348.6,3347.7,0.97866749]
[1768418350546,0.401,3348.6,3347.8,0.02987036]
[1768418351251,2.98571691,3349.3,3347.8,0.02987036]
[1768418351252,0.9474379,3349.3,3347.9,0.97866749]
[1768418351456,0.401,3349.1,3347.9,0.97866749]
[1768418352217,0.401,3349.1,3348.0,6.95238313]
[1768418352422,0.9474379,3349.3,3348.1,0.02986768]
[1768418352423,0.401,3349.2,3348.1,0.02986768]
[1768418352746,0.15567939,3349.1,3348.1,0.02986768]
[1768418353423,1.10311729,3349.1,3348.0,3.96552531]
[1768418354334,0.9474379,3349.0,3347.9,2.98689827]
[1768418354535,0.9474379,3348.8,3347.8,2.98703127]
[1768418355037,0.9474379,3348.8,3347.8,5.97406753]
[1768418355248,1.35634235,3348.8,3347.9,0.02986947]
[1768418355551,0.40890445,3348.8,3347.9,1.00853696]
[1768418355768,1.10311729,3349.1,3347.9,1.00853696]
[1768418356454,1.10311729,3349.1,3348.0,5.97371564]
[1768418356747,0.9474379,3349.0,3348.0,2.98685782]
[1768418357618,0.9474379,3349.0,3348.1,0.001]
[1768418358637,0.9474379,3348.9,3348.1,0.001]
[1768418359222,0.9474379,3348.7,3348.1,0.001]
[1768418363027,0.90423632,3348.5,3348.1,0.001]
[1768418363824,0.93468898,3348.5,3348.1,0.001]
[1768418364557,0.90423632,3348.5,3348.1,0.001]
[1768418365459,0.90423632,3348.4,3348.1,0.001]
[1768418365658,0.42916743,3348.3,3348.1,0.001]
[1768418367855,0.83016743,3348.3,3348.1,0.001]
[1768418368657,0.401,3348.4,3348.1,0.001]
[1768418369543,0.401,3348.6,3348.1,0.001]
[1768418371030,1.30523632,3348.6,3348.1,0.001]
[1768418371648,4.29156859,3348.6,3348.1,0.001]
[1768418371954,0.90423632,3348.5,3348.1,0.001]
[1768418372333,1.63201812,3348.4,3348.1,0.001]
[1768418372534,0.90423632,3348.3,3348.1,0.001]
[1768418373351,0.90423632,3348.2,3348.1,0.001]
[1768418373734,0.85423632,3348.2,3348.1,0.001]
[1768418374059,0.85423632,3348.2,3347.3,3.94137761]
[1768418374241,0.401,3348.1,3347.3,3.94137761]
[1768418375529,0.401,3348.1,3347.1,0.95392754]
[1768418375732,0.90423632,3348.0,3347.1,0.95392754]
[1768418376057,0.90423632,3348.0,3347.1,2.98764245]
[1768418376464,0.90423632,3347.9,3346.7,0.001]
[1768418376653,0.90423632,3347.9,3346.9,2.98775845]
[1768418376847,0.90423632,3347.7,3346.9,2.98775845]
[1768418377064,0.401,3347.6,3346.9,2.98775845]
[1768418377565,0.401,3347.6,3347.1,2.98764957]
[1768418377764,0.216223,3347.6,3346.8,0.98380682]
[1768418377969,0.401,3347.8,3346.8,0.98380682]
[1768418378139,0.401,3347.8,3346.8,0.95392754]
[1768418378536,2.98609711,3348.9,3346.8,0.95392754]
[1768418378537,0.90423632,3349.0,3346.8,0.98380682]
[1768418378832,0.401,3349.0,3347.0,0.95392754]
[1768418379046,0.401,3349.0,3347.2,0.95392754]
[1768418379366,1.30523632,3349.0,3347.2,0.95392754]
[1768418379663,1.30523632,3349.0,3347.5,0.95392754]
[1768418379847,0.401,3349.0,3347.7,0.95392754]
[1768418381361,0.002,3347.8,3347.7,0.95392754]
[1768418381563,0.002,3348.1,3347.8,0.95392754]
[1768418381761,4.29122382,3349.0,3347.9,2.98694704]
[1768418381967,1.30523632,3349.0,3347.9,6.92782162]
[1768418382270,1.30523632,3349.0,3348.0,0.69278216]
[1768418382271,4.29121351,3349.0,3348.0,0.69278216]
[1768418382853,1.30523632,3349.0,3348.0,0.69278216]
[1768418383065,0.90423632,3348.9,3348.0,0.69278216]
[1768418383950,3.89033988,3348.9,3348.0,0.69278216]
[1768418384667,0.93468898,3348.8,3347.1,0.95492754]
[1768418385060,0.93468898,3348.8,3347.2,2.98755727]
[1768418385259,0.90423632,3348.8,3347.1,0.95492754]
[1768418385459,0.90423632,3348.8,3347.2,2.98751913]
[1768418385655,0.90423632,3348.8,3347.1,0.95492754]
[1768418385845,0.90423632,3348.4,3347.3,2.98748244]
[1768418386044,1.30523632,3348.3,3347.3,2.98748244]
[1768418386246,1.30523632,3348.3,3347.3,5.97496488]
[1768418386657,1.30523632,3348.3,3347.3,2.98748244]
[1768418387768,0.90423632,3348.3,3347.3,6.92889242]
[1768418387972,0.401,3348.2,3347.4,1.67977828]
[1768418389975,0.401,3348.2,3347.4,4.66710569]
[1768418390675,0.98886065,3348.1,3347.1,0.001]
[1768418390969,0.98886065,3348.1,3347.2,2.9875156]
[1768418391173,0.98886065,3348.1,3347.1,0.001]
[1768418391174,0.98886065,3348.1,3347.1,2.98862556]
[1768418391584,0.98886065,3348.1,3347.1,0.001]
[1768418392177,0.98886065,3347.9,3347.1,0.001]
[1768418392480,3.01731048,3348.0,3347.1,0.001]
[1768418392481,0.98886065,3347.7,3347.1,0.001]
[1768418392679,1.38986065,3347.6,3347.1,0.001]
[1768418393258,0.401,3347.7,3347.1,0.001]
[1768418395384,1.38986065,3347.7,3347.1,0.001]
[1768418395560,0.002,3347.9,3347.1,0.9488238]
[1768418395774,0.002,3348.2,3347.5,0.9478238]
[1768418395962,0.002,3348.2,3347.6,0.02987214]
[1768418396583,0.002,3348.2,3347.6,3.96489568]
[1768418396783,0.002,3348.2,3347.7,0.69522818]
[1768418397390,0.002,3348.2,3347.7,1.64305198]
[1768418397560,0.002,3348.2,3347.8,0.9478238]
[1768418398391,2.98596595,3349.0,3348.1,0.9478238]
[1768418398590,5.97184706,3349.1,3348.1,0.9478238]
[1768418398760,0.73617077,3349.0,3348.1,0.9478238]
[1768418400189,0.73617077,3349.0,3348.1,3.9345539]
[1768418400486,0.401,3349.1,3348.1,3.9345539]
[1768418401869,0.401,3349.0,3348.2,0.9478238]
[1768418402588,3.38701221,3349.0,3348.2,0.9478238]
[1768418402790,0.401,3349.0,3348.2,0.9478238]
[1768418403192,0.401,3349.0,3348.2,3.93449683]
[1768418403434,0.98886065,3349.4,3348.3,0.9478238]
[1768418403599,0.002,3349.5,3348.6,0.9478238]
[1768418404593,0.002,3349.5,3348.8,0.9478238]
[1768418404892,0.002,3349.5,3348.9,0.9478238]
[1768418406697,0.002,3349.5,3348.8,0.399]
[1768418406698,0.002,3349.5,3349.0,3.93378975]
[1768418406866,0.002,3349.5,3349.1,0.73188936]
[1768418408097,0.002,3349.2,3349.1,0.73188936]
[1768418408277,0.002,3349.5,3349.1,0.73188936]
[1768418409885,0.002,3349.5,3349.0,0.9478238]
[1768418410778,0.002,3349.5,3348.8,3.3851118]
[1768418411298,0.002,3349.5,3348.8,4.3329356]
[1768418411497,0.002,3349.5,3348.7,2.98619942]
[1768418411700,0.99086065,3349.5,3348.6,2.98626865]
[1768418411864,0.99086065,3349.5,3348.7,2.98623255]
[1768418412268,0.98886065,3349.3,3348.3,2.98653105]
[1768418412466,0.98886065,3349.1,3348.0,2.98677337]
[1768418412682,0.401,3349.4,3348.0,2.98677337]
[1768418412683,0.98886065,3348.9,3348.0,2.98677337]
[1768418413112,1.01931331,3348.9,3348.0,2.98677337]
[1768418413287,0.98886065,3349.2,3348.1,0.69215586]
[1768418413673,1.38986065,3349.2,3348.1,1.63997966]
[1768418414195,4.37565594,3349.2,3348.2,0.9478238]
[1768418414503,7.36145123,3349.2,3348.2,0.9478238]
[1768418414692,0.98886065,3349.1,3348.0,2.98677337]
[1768418415015,0.03045266,3349.0,3347.9,0.9478238]
[1768418415316,0.98886065,3349.4,3348.2,0.9478238]
[1768418415482,0.98886065,3349.4,3347.8,16.05205006]
[1768418415483,0.98886065,3349.4,3348.3,0.9776897]
[1768418415902,3.9745146,3349.4,3348.3,0.9776897]
[1768418416106,4.71101085,3349.4,3348.3,0.9776897]
[1768418416307,1.7253569,3349.4,3348.3,0.9776897]
[1768418416502,4.71097074,3349.4,3348.3,0.9776897]
[1768418416710,2.98755283,3349.5,3348.3,0.9776897]
[1768418417008,2.98755283,3349.5,3348.5,0.9478238]
[1768418417310,2.98755283,3349.5,3348.6,0.97768702]
[1768418417871,0.002,3349.5,3348.6,0.97768702]
[1768418418312,0.002,3349.5,3348.6,0.9478238]
[1768418418485,0.002,3349.5,3348.8,0.9478238]
[1768418419007,0.002,3349.5,3348.9,3.93387892]
[1768418419396,0.002,3349.5,3349.0,0.97768345]
[1768418419788,0.002,3349.5,3349.0,0.9478238]
[1768418420118,0.002,3349.5,3349.0,0.97768345]
[1768418420424,0.002,3349.6,3349.2,0.90676508]
[1768418421015,0.002,3349.6,3349.3,0.98329721]
[1768418421313,0.002,3349.8,3349.3,0.98329721]
[1768418423222,0.002,3350.1,3349.3,3.96897825]
[1768418423518,0.002,3350.1,3349.3,6.95467675]
[1768418423695,0.002,3350.1,3349.4,1.76128815]
[1768418424096,0.002,3350.1,3349.5,0.98329721]
[1768418425406,0.002,3350.1,3349.5,2.98545983]
[1768418425612,0.002,3350.1,3349.4,0.77799094]
[1768418425808,0.002,3350.1,3349.2,2.98577987]
[1768418425809,0.93311447,3350.1,3349.2,2.98577987]
[1768418426121,0.90266181,3350.1,3348.9,2.98597534]
[1768418426306,0.90266181,3350.1,3349.0,0.43682726]
[1768418426505,0.90266181,3350.1,3349.0,3.42279192]
[1768418426711,0.90266181,3350.1,3349.2,2.98573053]
[1768418427519,0.90266181,3350.1,3349.1,2.9858768]
[1768418428022,0.90066181,3350.0,3349.1,2.9858768]
[1768418428403,0.90066181,3350.0,3349.1,3.76497531]
[1768418432305,0.90066181,3350.0,3349.3,0.001]
[1768418432822,0.90066181,3349.9,3349.3,0.001]
[1768418434123,0.90266181,3350.1,3349.3,0.001]
[1768418434439,0.90266181,3350.9,3350.0,6.3253247]
[1768418434593,0.90266181,3350.9,3350.0,0.98329721]
[1768418435099,0.90266181,3350.9,3350.1,3.00381993]
[1768418435713,0.90266181,3350.9,3350.1,8.34584742]
[1768418436227,0.005,3351.2,3350.4,5.34202749]
[1768418436432,0.005,3351.2,3350.4,6.3253247]
[1768418436599,0.005,3351.2,3350.4,5.34202749]
[1768418437216,0.005,3351.2,3350.4,8.32672141]
[1768418437528,0.005,3351.2,3350.5,0.98329721]
[1768418437731,2.98900636,3351.2,3350.5,0.48424759]
[1768418438028,0.005,3351.2,3350.3,2.9848067]
[1768418438531,0.90066181,3351.1,3350.1,3.00379573]
[1768418438700,0.93111447,3351.1,3350.1,0.01887828]
[1768418438902,0.90066181,3350.9,3350.1,0.01887828]
[1768418439226,0.90066181,3350.7,3350.1,0.01887828]
[1768418439435,0.03045266,3351.1,3350.1,0.01887828]
[1768418439436,10.0,3357.0,3352.9,0.84064766]
[1768418439634,10.0,3357.0,3351.2,0.90066181]
[1768418439635,5.97715995,3359.1,3357.0,7.0776947]
[1768418439833,5.97715995,3359.1,3357.1,0.399]
[1768418439834,0.90066181,3358.7,3357.1,0.399]
[1768418440058,0.90066181,3358.5,3356.8,4.12395485]
[1768418440344,0.0231667,3359.1,3357.4,0.09032472]
[1768418440345,0.90066181,3358.1,3357.4,0.09032472]
[1768418440499,0.90066181,3358.7,3357.4,0.09032472]
[1768418440700,0.90066181,3358.5,3357.9,0.09032472]
[1768418441001,0.90066181,3359.0,3357.9,0.08816946]
[1768418441250,3.169,3358.9,3357.9,3.06615072]
[1768418441544,0.23078867,3358.9,3357.9,5.95603301]
[1768418441835,0.00170864,3360.0,3357.9,5.95603301]
[1768418441836,0.00170864,3360.0,3359.1,0.02316669]
[1768418442033,0.00170864,3360.0,3358.6,0.399]
[1768418442242,0.90237045,3360.0,3358.3,0.399]
[1768418442624,0.90066181,3359.8,3357.6,14.5]
[1768418442810,0.90066181,3359.6,3357.7,2.65509919]
[1768418443014,0.90066181,3359.6,3357.7,0.399]
[1768418443245,0.90066181,3359.8,3357.7,0.98329721]
[1768418443448,30.90066181,3359.5,3357.8,0.399]
[1768418443759,30.90066181,3359.5,3357.2,15.48329721]
[1768418443760,0.90066181,3359.5,3357.2,15.48329721]
[1768418444051,0.89277875,3359.6,3357.7,3.96149336]
[1768418444251,0.002,3359.7,3357.5,7.0776947]
[1768418444252,0.002,3359.7,3357.9,0.98329721]
[1768418444551,0.002,3359.7,3358.0,0.398]
[1768418444924,0.002,3359.7,3357.5,7.0776947]
[1768418444925,0.90266181,3359.7,3357.5,7.0776947]
[1768418445124,0.90266181,3359.7,3357.4,0.398]
[1768418445125,2.97681064,3359.3,3357.4,0.398]
[1768418445442,3.87747245,3359.3,3357.4,0.398]
[1768418445749,0.38774725,3359.2,3357.4,0.398]
[1768418445948,11.28840906,3359.2,3357.4,0.398]
[1768418446245,0.90066181,3359.1,3357.4,0.398]
[1768418446445,0.90066181,3359.1,3357.5,0.398]
[1768418447052,1.93181792,3359.2,3357.6,0.98329721]
[1768418447258,2.97654482,3359.6,3357.8,2.97814044]
[1768418447412,12.97654482,3359.6,3357.7,0.398]
[1768418447620,30.0,3359.4,3357.8,0.398]
[1768418447953,0.90066181,3359.5,3357.8,0.398]
[1768418448253,1.02322285,3359.4,3357.8,0.398]
[1768418449218,1.02322285,3359.4,3357.0,0.98329721]
[1768418449219,36.85428309,3359.3,3357.0,0.98329721]
[1768418449418,6.85428309,3359.3,3357.2,0.98329721]
[1768418449638,6.85428309,3359.3,3357.2,3.9619659]
[1768418449836,9.83109373,3359.3,3357.3,2.97850465]
[1768418450143,0.78775059,3359.2,3357.2,0.98329721]
[1768418450443,0.78775059,3359.2,3357.3,0.398]
[1768418450745,11.76840831,3359.2,3357.4,0.398]
[1768418451056,3.09917484,3359.1,3357.4,0.398]
[1768418451229,0.4,3359.0,3357.5,0.398]
[1768418451435,8.93149542,3358.9,3357.5,0.398]
[1768418451636,0.98065772,3358.8,3356.7,0.91730984]
[1768418451936,0.98065772,3358.8,3356.8,0.398]
[1768418452138,2.30958955,3358.7,3356.8,0.398]
[1768418452865,10.98065772,3358.5,3356.8,3.37700181]
[1768418453019,0.4,3358.4,3356.8,3.37700056]
[1768418453220,0.4,3358.4,3356.9,2.97893538]
[1768418453518,5.95539408,3358.3,3356.8,2.97900548]
[1768418453722,0.73360518,3358.2,3356.9,0.398]
[1768418454543,0.73360518,3358.2,3356.2,0.91730984]
[1768418454770,0.98065772,3358.0,3356.2,0.91730984]
[1768418455053,0.98065772,3358.0,3356.3,0.398]
[1768418455371,2.97769704,3358.3,3356.9,0.91730984]
[1768418455522,5.95503944,3358.5,3357.0,2.97885016]
[1768418455726,5.95503944,3358.5,3356.9,3.89623532]
[1768418456062,5.95503944,3358.5,3357.2,0.001]
[1768418456376,0.76839713,3358.4,3357.2,0.001]
[1768418456726,0.98065772,3358.1,3357.2,0.001]
[1768418456922,1.38065772,3358.0,3357.2,0.001]
[1768418457684,5.9561035,3357.9,3357.2,0.001]
[1768418457841,0.98065772,3357.8,3357.2,0.001]
[1768418458042,1.0314813,3357.7,3357.2,0.001]
[1768418458555,0.4,3357.6,3357.2,0.001]
[1768418459584,0.4,3357.6,3356.0,0.398]
[1768418459585,2.97840655,3357.5,3355.7,0.91730984]
[1768418459738,2.97840655,3357.5,3355.6,5.96014751]
[1768418459739,2.97840655,3357.5,3355.9,0.91730984]
[1768418459940,0.44098878,3357.4,3355.9,0.91730984]
[1768418460290,0.4,3357.3,3355.9,0.91730984]
[1768418460936,0.84098878,3357.4,3355.9,0.91730984]
[1768418461087,0.98065772,3357.3,3355.6,6.87745735]
[1768418461462,5.9573454,3357.2,3355.8,2.97991537]
[1768418461762,5.9573454,3357.2,3355.7,3.89731013]
[1768418461763,0.77789919,3357.1,3355.7,3.89731013]
[1768418462662,0.77789919,3357.1,3355.6,2.98009113]
[1768418462663,1.75855691,3357.1,3355.3,3.11505334]
[1768418462977,1.75855691,3357.1,3355.5,2.98011758]
[1768418463275,1.75855691,3357.1,3355.5,2.98012216]
[1768418463483,1.0694575,3357.0,3355.5,2.98012216]
[1768418463685,19.91747442,3356.9,3355.3,0.91730984]
[1768418463848,0.4,3356.8,3355.3,0.91730984]
[1768418464292,0.4,3356.8,3355.4,0.16730592]
[1768418464586,0.98065772,3356.7,3354.9,0.91730984]
[1768418464802,1.88819763,3356.6,3354.9,0.91429984]
[1768418465117,0.98065772,3356.5,3355.0,2.98062441]
[1768418465267,0.98065772,3356.4,3354.9,2.98064486]
[1768418465666,0.98065772,3356.4,3353.3,0.59500276]
[1768418465667,9.91907204,3356.3,3354.6,0.91730984]
[1768418465916,0.4,3356.2,3354.6,3.89825685]
[1768418466064,0.73396006,3356.1,3354.7,0.38982569]
[1768418466473,0.73396006,3356.1,3354.8,0.1680272]
[1768418466665,0.73396006,3356.1,3354.9,0.1680272]
[1768418466992,0.73396006,3356.1,3355.0,0.1680272]
[1768418467173,0.73396006,3356.1,3355.1,0.1680272]
[1768418467369,0.48492791,3356.0,3355.2,0.1680272]
[1768418467584,0.48492791,3356.0,3355.3,0.1680272]
[1768418467788,0.48492791,3356.0,3354.5,2.98105333]
[1768418467789,5.95965314,3355.9,3354.5,2.98106339]
[1768418467988,5.95965314,3355.9,3354.6,2.98092777]
[1768418468359,0.48492791,3356.0,3354.6,2.98092777]
[1768418468360,0.48492791,3356.0,3354.6,0.91730984]
[1768418468565,0.4,3356.0,3355.1,2.98053696]
[1768418468799,30.0,3356.6,3355.3,2.98030899]
[1768418468964,5.95752286,3357.1,3355.4,3.01006542]
[1768418469166,0.98065772,3357.0,3355.4,3.89757256]
[1768418469367,0.4,3356.9,3355.4,3.89757256]
[1768418469697,0.002,3356.4,3355.5,0.38975726]
[1768418469880,5.96023278,3356.7,3355.5,0.38975726]
[1768418470079,5.96023278,3356.7,3355.5,3.369912]
[1768418470470,2.98111639,3356.7,3355.5,3.369912]
[1768418470694,0.4,3356.9,3355.6,0.91730984]
[1768418470894,0.98065772,3357.4,3355.7,0.42872218]
[1768418471082,0.4,3356.9,3355.7,0.42872218]
[1768418471288,2.97831784,3357.6,3355.9,0.91730984]
[1768418471475,0.002,3358.1,3356.2,0.91730984]
[1768418471675,0.002,3358.1,3356.6,0.91730984]
[1768418471979,0.002,3358.1,3356.8,0.91730984]
[1768418472381,0.002,3358.1,3356.7,1.08558976]
[1768418472585,0.98265772,3358.1,3355.9,2.93327465]
[1768418472788,0.98065772,3357.9,3356.4,2.97937173]
[1768418473036,0.4,3357.8,3356.4,2.97937173]
[1768418473175,0.4,3357.8,3356.4,5.9587544]
[1768418473783,0.002,3358.1,3356.5,0.91730984]
[1768418473979,5.95592614,3358.0,3356.6,1.08560642]
[1768418474183,6.93658386,3358.0,3356.6,0.68760642]
[1768418474387,6.93658386,3358.0,3355.8,0.91730984]
[1768418474388,0.98065772,3357.6,3355.8,0.91730984]
[1768418474584,0.4,3357.5,3356.0,0.398]
[1768418474905,0.4,3357.5,3355.7,2.97992287]
[1768418474906,0.98065772,3357.4,3355.7,2.97992287]
[1768418475085,0.98065772,3357.4,3355.5,0.398]
[1768418475287,0.98065772,3357.4,3355.2,3.89774989]
[1768418475497,0.98065772,3357.0,3355.3,3.37010805]
[1768418475704,0.98065772,3356.8,3355.3,3.37010805]
[1768418475889,0.98065772,3356.5,3354.9,0.001]
[1768418476089,9.33734917,3356.7,3354.9,0.001]
[1768418476090,1.38065772,3356.4,3354.9,0.001]
[1768418476291,5.95823278,3356.7,3354.9,0.91830984]
[1768418476480,5.95811646,3356.8,3355.3,2.98032128]
[1768418476683,0.63581165,3356.8,3355.4,1.61334197]
[1768418476909,2.97888749,3357.0,3355.5,0.91730984]
[1768418477212,5.95663568,3357.6,3355.6,0.91730984]
[1768418477594,6.9372934,3357.6,3355.6,0.91730984]
[1768418477995,9.91561124,3357.6,3355.7,6.35800834]
[1768418478785,0.98065772,3357.4,3355.8,0.398]
[1768418479104,2.37221884,3357.3,3355.8,0.398]
[1768418479305,2.37221884,3357.3,3355.7,2.98000417]
[1768418479499,2.37221884,3357.3,3355.7,3.37800417]
[1768418479710,17.278,3357.2,3355.7,3.37800417]
[1768418479892,5.95770032,3357.0,3355.7,3.37800417]
[1768418480213,0.6938358,3356.9,3355.7,3.37800417]
[1768418480418,0.6938358,3356.9,3355.7,3.378]
[1768418480718,0.6938358,3356.9,3355.5,3.37813136]
[1768418480925,0.6938358,3356.9,3355.6,2.98008384]
[1768418481122,0.6938358,3356.9,3355.5,2.98018128]
[1768418481290,0.76321938,3356.8,3355.5,0.71758956]
[1768418481486,1.72326508,3356.8,3355.4,0.69603213]
[1768418481692,0.76321938,3356.8,3355.5,2.98011695]
[1768418481892,2.97911639,3356.7,3355.5,2.98011695]
[1768418482839,0.9600457,3356.3,3354.9,0.001]
[1768418482983,0.9600457,3356.3,3353.9,3.63758051]
[1768418482984,0.9600457,3356.1,3353.9,0.012]
[1768418483190,22.66824757,3356.7,3353.9,0.012]
[1768418483191,0.9600457,3355.5,3353.9,0.012]
[1768418483487,2.832666,3356.0,3353.9,0.012]
[1768418483488,0.9600457,3355.3,3353.9,0.012]
[1768418483708,0.4,3355.2,3353.9,0.012]
[1768418484114,5.96107418,3355.1,3353.9,0.012]
[1768418484418,0.9600457,3355.0,3353.9,0.012]
[1768418484620,0.73211199,3354.9,3353.9,0.012]
[1768418484817,2.97944326,3356.4,3353.9,2.99358208]
[1768418484818,0.4,3355.2,3353.9,2.99358208]
[1768418485024,0.4,3355.2,3354.0,0.02981514]
[1768418485422,0.4,3355.2,3353.9,2.99358208]
[1768418485605,0.4,3355.2,3354.1,0.02981425]
[1768418485805,0.4,3355.2,3354.1,0.67011423]
[1768418486002,0.4,3355.6,3354.1,0.67011423]
[1768418486318,0.9600457,3355.2,3353.9,0.012]
[1768418486518,0.9600457,3355.1,3353.9,0.012]
[1768418488226,2.98062593,3355.0,3353.9,0.012]
[1768418488528,5.96125186,3355.0,3353.9,0.012]
[1768418488820,3.94067163,3355.0,3353.9,0.012]
[1768418489030,0.69212088,3354.9,3353.9,0.012]
[1768418489200,1.09212088,3354.9,3353.9,0.012]
[1768418490303,5.96160724,3354.8,3353.9,0.012]